{"text_format":"1","workbook":"xlsx","n_sheets":23,"sheets":["DEMANDE DE DONNEES_5","SECRETARIAT CADE - DEMANDE_5","AVIS EXPERT_5","AVIS CADE_5","DEMANDE DE DONNEES_4","SECRETARIAT CADE - DEMANDE_4","AVIS EXPERT_4","AVIS CADE_4","DEMANDE DE DONNEES_3","SECRETARIAT CADE - DEMANDE_3","AVIS EXPERT_3","AVIS CADE_3","DEMANDE DE DONNEES_2","SECRETARIAT CADE - DEMANDE_2","AVIS EXPERT_2","AVIS CADE_2","SECRETARIAT CADE - DEMANDE","AVIS EXPERT","AVIS CADE","DEMANDE DE DONNEES","{AIDE}","RESERVE EXPERTISE","liste_formulaire"],"not_rendered":{"charts":0,"images":4,"macros":1,"external_links":0,"defined_names":27,"comments":0,"pivot_tables":0},"unopened":[],"bounds":{"document_bytes":16777216,"sheet_cells":100000,"rows_first":2000,"rows_last":500,"rows_between":2000,"halvings":0,"cell_chars":16384,"cell_head_chars":4096},"cells_cut":0,"cells_raw":0,"read":"whole","date_system":"1900"}

{"sheet":"DEMANDE DE DONNEES_5","index":0,"n_rows":135,"n_cols":9,"rows_kept":135,"cut":false,"hidden":true,"merged":[[1,3,5,5],[1,8,4,11],[87,3,91,5],[107,3,111,5],[134,3,138,5]]}
[{"$f":"TRIM(LEFT(SUBSTITUTE(E19,\"-\",\" \")&REPT(\" \",4))&MID(SUBSTITUTE(E19,\"-\",\" \")&REPT(\" \",4),FIND(\"µ\",SUBSTITUTE(SUBSTITUTE(E19,\"-\",\" \")&REPT(\" \",4),\" \",\"µ\",1))+1,1)&MID(SUBSTITUTE(E19,\"-\",\" \")&REPT(\" \",4),FIND(\"µ\",SUBSTITUTE(SUBSTITUTE(E19,\"-\",\" \")&REPT(\" \",4),\" \",\"µ\",2))+1,1)&MID(SUBSTITUTE(E19,\"-\",\" \")&REPT(\" \",4),FIND(\"µ\",SUBSTITUTE(SUBSTITUTE(E19,\"-\",\" \")&REPT(\" \",4),\" \",\"µ\",3))+1,1))","v":""}]
[null,null,null,"Formulaire d'accès aux données Elfe",null,null,null,null,"Partie réservée \nDEMANDEUR"]
[]
[]
[]
[]
[]
[]
[null,null,null,null,"Titre (explicite)"]
[]
[]
[null,null,null,null,"Date début"]
[]
[]
[null,null,null,null,"Date fin"]
[]
[]
[null,null,null,null,"Identité du demandeur (Prénom NOM)"]
[]
[]
[null,null,null,null,"Statut du demandeur (à choisir parmi la liste)"]
[]
[]
[null,null,null,null,"Identité de l'encadrant du projet (Prénom NOM) et signataire de la future lettre d'engagement *"]
[]
[null,null,null,null,"* champs obligatoires"]
[null,null,null,null,"Nom, prénom des autres personnes qui auront accès aux données"]
[]
[]
[null,null,null,null,"Résumé public (à destination des participants, mis en ligne sur le site Elfe, 200 mots max)"]
[]
[null,null,null,null,{"$f":"CONCATENATE(\"Nombre de mots approximatif : \", SUM(IF(LEN(TRIM(E31))=0,0,LEN(TRIM(E31))-LEN(SUBSTITUTE(E31,\" \",\"\"))+1)))","v":"Nombre de mots approximatif : 0"}]
[null,null,null,null,"Contexte"]
[]
[]
[null,null,null,null,"Objectifs"]
[]
[]
[null,null,null,null,"Méthode(s) envisagée(s)"]
[]
[]
[null,null,null,null,"Listez les catégories de variables demandées et justifier leur pertinence par rapport à votre objectif *"]
[]
[null,null,null,null,"* pour  toutes variables demandées qui ne figureraient pas au catalogue, merci de remplir l'onglet \"VARIABLES_SUPPLEMENTAIRES\" du catalogue"]
[null,null,null,null,"Thème 1 *"]
[]
[null,null,null,null,"* champs obligatoires"]
[null,null,null,null,"Thème 2 *"]
[]
[null,null,null,null,"* champs obligatoires"]
[]
[null,null,null,null,"Thème 3"]
[]
[]
[null,null,null,null,"Cette demande s’inscrit elle dans un projet qui a reçu un financement ?"]
[]
[]
[null,null,null,null,"Montant du droit d’accès aux données Elfe"]
[]
[]
[null,null,null,null,"Envisagez-vous une création de variable susceptible d’enrichir la base de données Elfe"]
[]
[]
[null,null,null,null,"Votre demande nécessite-t-elle des variables directement ou indirectement nominatives (elles sont identifiées par une * dans le questionnaire, leur délivrance demandant une autorisation de la CNIL)"]
[]
[]
[null,null,null,null,"Si oui, lesquelles "]
[]
[]
[]
[null,null,null,null,"Format souhaité pour la livraison des données * (à choisir parmi la liste)"]
[]
[]
[]
[null,null,null,null,"E-mail professionnel du demandeur *"]
[]
[]
[null,null,null,null,"Indiquez votre identifiant CADE transmis par e-mail lors de la validation de votre inscription (PNOMxxx) *"]
[]
[null,null,null,null,"* champs obligatoires"]
[]
[]
[]
[]
[]
[]
[]
[null,null,null,"COMMENTAIRES DU DEMANDEUR\nSuite à l'avis EXPERT"]
[]
[]
[]
[]
[]
[null,null,null,null,"Date"]
[]
[]
[null,null,null,null,"Commentaires du demandeur"]
[]
[]
[]
[]
[]
[]
[]
[]
[]
[]
[null,null,null,"COMMENTAIRES DU DEMANDEUR\nSuite à l'avis CADE"]
[]
[]
[]
[]
[]
[null,null,null,null,"Date"]
[]
[]
[null,null,null,null,"Commentaires du demandeur"]
[]
[]
[]
[]
[]
[]
[]
[]
[]
[]
[]
[]
[]
[]
[]
[]
[]
[null,null,null,"Formulaire d'accès aux données Elfe - Demande complémentaire à une précédente"]

{"sheet":"SECRETARIAT CADE - DEMANDE_5","index":1,"n_rows":31,"n_cols":18,"rows_kept":31,"cut":false,"hidden":true,"merged":[[21,4,22,4],[1,3,5,5],[1,7,4,10],[1,12,4,15],[1,17,4,20],[8,4,9,4],[15,3,19,5]]}
[{"$f":"'DEMANDE DE DONNEES'!A1","v":""}]
[null,null,null,"SECRÉTARIAT DU CADE\nDemande",null,null,null,"Partie réservée \nDEMANDEUR",null,null,null,null,"Partie réservée \nEXPERT",null,null,null,null,"Partie réservée \nCADE"]
[]
[]
[]
[]
[]
[]
[]
[]
[]
[]
[]
[]
[]
[null,null,null,"TRANSMISSION À L'EXPERT"]
[]
[]
[]
[]
[]
[]
[]
[]
[null,null,null,null,"Sélectionner un EXPERT"]
[]
[]
[null,null,null,null,"Date"]
[]
[]
[null,null,null,null,"Informations à transmettre"]

{"sheet":"AVIS EXPERT_5","index":2,"n_rows":72,"n_cols":18,"rows_kept":72,"cut":false,"hidden":true,"merged":[[1,17,4,20],[8,4,9,4],[10,4,11,4],[79,3,79,5],[80,3,81,5],[1,3,5,5],[1,7,4,10],[1,12,4,15]]}
[{"$f":"'DEMANDE DE DONNEES_5'!A1","v":""}]
[null,null,null,"AVIS EXPERT",null,null,null,"Partie réservée \nDEMANDEUR",null,null,null,null,"Partie réservée \nEXPERT",null,null,null,null,"Partie réservée \nCADE"]
[]
[]
[]
[]
[]
[]
[null,null,null,null,{"$f":"IF('DEMANDE DE DONNEES'!E79<>\"\",'DEMANDE DE DONNEES'!E79,\"\")","v":""}]
[]
[null,null,null,null,{"$f":"IF('SECRETARIAT CADE - DEMANDE'!E12<>\"\",CONCATENATE(\"DEMANDE : \",'SECRETARIAT CADE - DEMANDE'!E12),\"\")","v":""}]
[]
[null,null,null,null,"Expert"]
[null,null,null,null,{"$f":"IF('SECRETARIAT CADE - DEMANDE_5'!E26<>\"\",'SECRETARIAT CADE - DEMANDE_5'!E26,\"\")","v":""}]
[]
[null,null,null,null,"Date de l'avis"]
[]
[]
[]
[null,null,null,null,"Les objectifs de la recherche sont en accord avec les objectifs généraux de la cohorte : oui/non ?"]
[]
[null,null,null,null,"Si non, commentez :"]
[]
[]
[]
[null,null,null,null,"Le résumé grand public vous parait adéquat : oui/non ?"]
[]
[null,null,null,null,"Si non, commentez :"]
[]
[]
[]
[null,null,null,null,"Les objectifs et méthodes sont-ils suffisamment précis pour permettre l’expertise : oui/non ?"]
[]
[null,null,null,null,"Si non, commentez :"]
[]
[]
[]
[null,null,null,null,"Les variables sélectionnées sont bien en rapport avec les objectifs de projet : oui/non ?"]
[]
[null,null,null,null,"Si non, commentez :"]
[]
[]
[]
[null,null,null,null,"La demande vous parait-elle soulever des enjeux éthiques : oui/non ?"]
[]
[null,null,null,null,"Si oui, commentez :"]
[]
[]
[]
[null,null,null,null,"La demande contient-elle des variables sensibles (opinion religieuse, politique, orientation sexuelle…) : oui/non ?"]
[]
[null,null,null,null,"Si oui, commentez :"]
[]
[]
[]
[null,null,null,null,"La demande contient-elle des combinaisons de variables augmentant le risque de ré-identification : oui/non ?"]
[]
[null,null,null,null,"Si oui, commentez :"]
[]
[]
[]
[null,null,null,null,"Remarques éventuelles sur la pertinence des variables sélectionnées par rapport à l’objectif du projet : "]
[]
[]
[null,null,null,null,"Suggestion de variables à ajouter à la sélection : "]
[]
[]
[null,null,null,null,"Autres remarques éventuelles :"]
[]
[]
[]
[null,null,null,null,"Avis de l'expert"]

{"sheet":"AVIS CADE_5","index":3,"n_rows":19,"n_cols":18,"rows_kept":19,"cut":false,"hidden":true,"merged":[[1,17,4,20],[8,4,9,4],[10,4,11,4],[26,3,26,5],[27,3,28,5],[1,3,5,5],[1,7,4,10],[1,12,4,15]]}
[{"$f":"'DEMANDE DE DONNEES_5'!A1","v":""}]
[null,null,null,"DECISION CADE",null,null,null,"Partie réservée \nDEMANDEUR",null,null,null,null,"Partie réservée \nEXPERT",null,null,null,null,"Partie réservée \nCADE"]
[]
[]
[]
[]
[null,null,null,null,{"$f":"'SECRETARIAT CADE - DEMANDE'!E12","v":0}]
[]
[null,null,null,null,{"$f":"IF('DEMANDE DE DONNEES'!E79<>\"\",'DEMANDE DE DONNEES'!E79,\"\")","v":""}]
[]
[null,null,null,null,{"$f":"IF('SECRETARIAT CADE - DEMANDE'!E12<>\"\",CONCATENATE(\"DEMANDE : \",'SECRETARIAT CADE - DEMANDE'!E12),\"\")","v":""}]
[]
[null,null,null,null,"Date du CADE"]
[]
[]
[null,null,null,null,"Avis du CADE"]
[]
[]
[null,null,null,null,"Remarques"]

{"sheet":"DEMANDE DE DONNEES_4","index":4,"n_rows":135,"n_cols":9,"rows_kept":135,"cut":false,"hidden":true,"merged":[[1,3,5,5],[1,8,4,11],[87,3,91,5],[107,3,111,5],[134,3,138,5]]}
[{"$f":"TRIM(LEFT(SUBSTITUTE(E19,\"-\",\" \")&REPT(\" \",4))&MID(SUBSTITUTE(E19,\"-\",\" \")&REPT(\" \",4),FIND(\"µ\",SUBSTITUTE(SUBSTITUTE(E19,\"-\",\" \")&REPT(\" \",4),\" \",\"µ\",1))+1,1)&MID(SUBSTITUTE(E19,\"-\",\" \")&REPT(\" \",4),FIND(\"µ\",SUBSTITUTE(SUBSTITUTE(E19,\"-\",\" \")&REPT(\" \",4),\" \",\"µ\",2))+1,1)&MID(SUBSTITUTE(E19,\"-\",\" \")&REPT(\" \",4),FIND(\"µ\",SUBSTITUTE(SUBSTITUTE(E19,\"-\",\" \")&REPT(\" \",4),\" \",\"µ\",3))+1,1))","v":""}]
[null,null,null,"Formulaire d'accès aux données Elfe",null,null,null,null,"Partie réservée \nDEMANDEUR"]
[]
[]
[]
[]
[]
[]
[null,null,null,null,"Titre (explicite)"]
[]
[]
[null,null,null,null,"Date début"]
[]
[]
[null,null,null,null,"Date fin"]
[]
[]
[null,null,null,null,"Identité du demandeur (Prénom NOM)"]
[]
[]
[null,null,null,null,"Statut du demandeur (à choisir parmi la liste)"]
[]
[]
[null,null,null,null,"Identité de l'encadrant du projet (Prénom NOM) et signataire de la future lettre d'engagement *"]
[]
[null,null,null,null,"* champs obligatoires"]
[null,null,null,null,"Nom, prénom des autres personnes qui auront accès aux données"]
[]
[]
[null,null,null,null,"Résumé public (à destination des participants, mis en ligne sur le site Elfe, 200 mots max)"]
[]
[null,null,null,null,{"$f":"CONCATENATE(\"Nombre de mots approximatif : \", SUM(IF(LEN(TRIM(E31))=0,0,LEN(TRIM(E31))-LEN(SUBSTITUTE(E31,\" \",\"\"))+1)))","v":"Nombre de mots approximatif : 0"}]
[null,null,null,null,"Contexte"]
[]
[]
[null,null,null,null,"Objectifs"]
[]
[]
[null,null,null,null,"Méthode(s) envisagée(s)"]
[]
[]
[null,null,null,null,"Listez les catégories de variables demandées et justifier leur pertinence par rapport à votre objectif *"]
[]
[null,null,null,null,"* pour  toutes variables demandées qui ne figureraient pas au catalogue, merci de remplir l'onglet \"VARIABLES_SUPPLEMENTAIRES\" du catalogue"]
[null,null,null,null,"Thème 1 *"]
[]
[null,null,null,null,"* champs obligatoires"]
[null,null,null,null,"Thème 2 *"]
[]
[null,null,null,null,"* champs obligatoires"]
[]
[null,null,null,null,"Thème 3"]
[]
[]
[null,null,null,null,"Cette demande s’inscrit elle dans un projet qui a reçu un financement ?"]
[]
[]
[null,null,null,null,"Montant du droit d’accès aux données Elfe"]
[]
[]
[null,null,null,null,"Envisagez-vous une création de variable susceptible d’enrichir la base de données Elfe"]
[]
[]
[null,null,null,null,"Votre demande nécessite-t-elle des variables directement ou indirectement nominatives (elles sont identifiées par une * dans le questionnaire, leur délivrance demandant une autorisation de la CNIL)"]
[]
[]
[null,null,null,null,"Si oui, lesquelles "]
[]
[]
[]
[null,null,null,null,"Format souhaité pour la livraison des données * (à choisir parmi la liste)"]
[]
[]
[]
[null,null,null,null,"E-mail professionnel du demandeur *"]
[]
[]
[null,null,null,null,"Indiquez votre identifiant CADE transmis par e-mail lors de la validation de votre inscription (PNOMxxx) *"]
[]
[null,null,null,null,"* champs obligatoires"]
[]
[]
[]
[]
[]
[]
[]
[null,null,null,"COMMENTAIRES DU DEMANDEUR\nSuite à l'avis EXPERT"]
[]
[]
[]
[]
[]
[null,null,null,null,"Date"]
[]
[]
[null,null,null,null,"Commentaires du demandeur"]
[]
[]
[]
[]
[]
[]
[]
[]
[]
[]
[null,null,null,"COMMENTAIRES DU DEMANDEUR\nSuite à l'avis CADE"]
[]
[]
[]
[]
[]
[null,null,null,null,"Date"]
[]
[]
[null,null,null,null,"Commentaires du demandeur"]
[]
[]
[]
[]
[]
[]
[]
[]
[]
[]
[]
[]
[]
[]
[]
[]
[]
[null,null,null,"Formulaire d'accès aux données Elfe - Demande complémentaire à une précédente"]

{"sheet":"SECRETARIAT CADE - DEMANDE_4","index":5,"n_rows":31,"n_cols":18,"rows_kept":31,"cut":false,"hidden":true,"merged":[[21,4,22,4],[1,3,5,5],[1,7,4,10],[1,12,4,15],[1,17,4,20],[8,4,9,4],[15,3,19,5]]}
[{"$f":"'DEMANDE DE DONNEES'!A1","v":""}]
[null,null,null,"SECRÉTARIAT DU CADE\nDemande",null,null,null,"Partie réservée \nDEMANDEUR",null,null,null,null,"Partie réservée \nEXPERT",null,null,null,null,"Partie réservée \nCADE"]
[]
[]
[]
[]
[]
[]
[]
[]
[]
[]
[]
[]
[]
[null,null,null,"TRANSMISSION À L'EXPERT"]
[]
[]
[]
[]
[]
[]
[]
[]
[null,null,null,null,"Sélectionner un EXPERT"]
[]
[]
[null,null,null,null,"Date"]
[]
[]
[null,null,null,null,"Informations à transmettre"]

{"sheet":"AVIS EXPERT_4","index":6,"n_rows":72,"n_cols":18,"rows_kept":72,"cut":false,"hidden":true,"merged":[[1,17,4,20],[8,4,9,4],[10,4,11,4],[79,3,79,5],[80,3,81,5],[1,3,5,5],[1,7,4,10],[1,12,4,15]]}
[{"$f":"'DEMANDE DE DONNEES_4'!A1","v":""}]
[null,null,null,"AVIS EXPERT",null,null,null,"Partie réservée \nDEMANDEUR",null,null,null,null,"Partie réservée \nEXPERT",null,null,null,null,"Partie réservée \nCADE"]
[]
[]
[]
[]
[]
[]
[null,null,null,null,{"$f":"IF('DEMANDE DE DONNEES'!E79<>\"\",'DEMANDE DE DONNEES'!E79,\"\")","v":""}]
[]
[null,null,null,null,{"$f":"IF('SECRETARIAT CADE - DEMANDE'!E12<>\"\",CONCATENATE(\"DEMANDE : \",'SECRETARIAT CADE - DEMANDE'!E12),\"\")","v":""}]
[]
[null,null,null,null,"Expert"]
[null,null,null,null,{"$f":"IF('SECRETARIAT CADE - DEMANDE_4'!E26<>\"\",'SECRETARIAT CADE - DEMANDE_4'!E26,\"\")","v":""}]
[]
[null,null,null,null,"Date de l'avis"]
[]
[]
[]
[null,null,null,null,"Les objectifs de la recherche sont en accord avec les objectifs généraux de la cohorte : oui/non ?"]
[]
[null,null,null,null,"Si non, commentez :"]
[]
[]
[]
[null,null,null,null,"Le résumé grand public vous parait adéquat : oui/non ?"]
[]
[null,null,null,null,"Si non, commentez :"]
[]
[]
[]
[null,null,null,null,"Les objectifs et méthodes sont-ils suffisamment précis pour permettre l’expertise : oui/non ?"]
[]
[null,null,null,null,"Si non, commentez :"]
[]
[]
[]
[null,null,null,null,"Les variables sélectionnées sont bien en rapport avec les objectifs de projet : oui/non ?"]
[]
[null,null,null,null,"Si non, commentez :"]
[]
[]
[]
[null,null,null,null,"La demande vous parait-elle soulever des enjeux éthiques : oui/non ?"]
[]
[null,null,null,null,"Si oui, commentez :"]
[]
[]
[]
[null,null,null,null,"La demande contient-elle des variables sensibles (opinion religieuse, politique, orientation sexuelle…) : oui/non ?"]
[]
[null,null,null,null,"Si oui, commentez :"]
[]
[]
[]
[null,null,null,null,"La demande contient-elle des combinaisons de variables augmentant le risque de ré-identification : oui/non ?"]
[]
[null,null,null,null,"Si oui, commentez :"]
[]
[]
[]
[null,null,null,null,"Remarques éventuelles sur la pertinence des variables sélectionnées par rapport à l’objectif du projet : "]
[]
[]
[null,null,null,null,"Suggestion de variables à ajouter à la sélection : "]
[]
[]
[null,null,null,null,"Autres remarques éventuelles :"]
[]
[]
[]
[null,null,null,null,"Avis de l'expert"]

{"sheet":"AVIS CADE_4","index":7,"n_rows":19,"n_cols":18,"rows_kept":19,"cut":false,"hidden":true,"merged":[[1,17,4,20],[8,4,9,4],[10,4,11,4],[26,3,26,5],[27,3,28,5],[1,3,5,5],[1,7,4,10],[1,12,4,15]]}
[{"$f":"'DEMANDE DE DONNEES_4'!A1","v":""}]
[null,null,null,"DECISION CADE",null,null,null,"Partie réservée \nDEMANDEUR",null,null,null,null,"Partie réservée \nEXPERT",null,null,null,null,"Partie réservée \nCADE"]
[]
[]
[]
[]
[null,null,null,null,{"$f":"'SECRETARIAT CADE - DEMANDE'!E12","v":0}]
[]
[null,null,null,null,{"$f":"IF('DEMANDE DE DONNEES'!E79<>\"\",'DEMANDE DE DONNEES'!E79,\"\")","v":""}]
[]
[null,null,null,null,{"$f":"IF('SECRETARIAT CADE - DEMANDE'!E12<>\"\",CONCATENATE(\"DEMANDE : \",'SECRETARIAT CADE - DEMANDE'!E12),\"\")","v":""}]
[]
[null,null,null,null,"Date du CADE"]
[]
[]
[null,null,null,null,"Avis du CADE"]
[]
[]
[null,null,null,null,"Remarques"]

{"sheet":"DEMANDE DE DONNEES_3","index":8,"n_rows":135,"n_cols":9,"rows_kept":135,"cut":false,"hidden":true,"merged":[[1,3,5,5],[1,8,4,11],[87,3,91,5],[107,3,111,5],[134,3,138,5]]}
[{"$f":"TRIM(LEFT(SUBSTITUTE(E19,\"-\",\" \")&REPT(\" \",4))&MID(SUBSTITUTE(E19,\"-\",\" \")&REPT(\" \",4),FIND(\"µ\",SUBSTITUTE(SUBSTITUTE(E19,\"-\",\" \")&REPT(\" \",4),\" \",\"µ\",1))+1,1)&MID(SUBSTITUTE(E19,\"-\",\" \")&REPT(\" \",4),FIND(\"µ\",SUBSTITUTE(SUBSTITUTE(E19,\"-\",\" \")&REPT(\" \",4),\" \",\"µ\",2))+1,1)&MID(SUBSTITUTE(E19,\"-\",\" \")&REPT(\" \",4),FIND(\"µ\",SUBSTITUTE(SUBSTITUTE(E19,\"-\",\" \")&REPT(\" \",4),\" \",\"µ\",3))+1,1))","v":""}]
[null,null,null,"Formulaire d'accès aux données Elfe",null,null,null,null,"Partie réservée \nDEMANDEUR"]
[]
[]
[]
[]
[]
[]
[null,null,null,null,"Titre (explicite)"]
[]
[]
[null,null,null,null,"Date début"]
[]
[]
[null,null,null,null,"Date fin"]
[]
[]
[null,null,null,null,"Identité du demandeur (Prénom NOM)"]
[]
[]
[null,null,null,null,"Statut du demandeur (à choisir parmi la liste)"]
[]
[]
[null,null,null,null,"Identité de l'encadrant du projet (Prénom NOM) et signataire de la future lettre d'engagement *"]
[]
[null,null,null,null,"* champs obligatoires"]
[null,null,null,null,"Nom, prénom des autres personnes qui auront accès aux données"]
[]
[]
[null,null,null,null,"Résumé public (à destination des participants, mis en ligne sur le site Elfe, 200 mots max)"]
[]
[null,null,null,null,{"$f":"CONCATENATE(\"Nombre de mots approximatif : \", SUM(IF(LEN(TRIM(E31))=0,0,LEN(TRIM(E31))-LEN(SUBSTITUTE(E31,\" \",\"\"))+1)))","v":"Nombre de mots approximatif : 0"}]
[null,null,null,null,"Contexte"]
[]
[]
[null,null,null,null,"Objectifs"]
[]
[]
[null,null,null,null,"Méthode(s) envisagée(s)"]
[]
[]
[null,null,null,null,"Listez les catégories de variables demandées et justifier leur pertinence par rapport à votre objectif *"]
[]
[null,null,null,null,"* pour  toutes variables demandées qui ne figureraient pas au catalogue, merci de remplir l'onglet \"VARIABLES_SUPPLEMENTAIRES\" du catalogue"]
[null,null,null,null,"Thème 1 *"]
[]
[null,null,null,null,"* champs obligatoires"]
[null,null,null,null,"Thème 2 *"]
[]
[null,null,null,null,"* champs obligatoires"]
[]
[null,null,null,null,"Thème 3"]
[]
[]
[null,null,null,null,"Cette demande s’inscrit elle dans un projet qui a reçu un financement ?"]
[]
[]
[null,null,null,null,"Montant du droit d’accès aux données Elfe"]
[]
[]
[null,null,null,null,"Envisagez-vous une création de variable susceptible d’enrichir la base de données Elfe"]
[]
[]
[null,null,null,null,"Votre demande nécessite-t-elle des variables directement ou indirectement nominatives (elles sont identifiées par une * dans le questionnaire, leur délivrance demandant une autorisation de la CNIL)"]
[]
[]
[null,null,null,null,"Si oui, lesquelles "]
[]
[]
[]
[null,null,null,null,"Format souhaité pour la livraison des données * (à choisir parmi la liste)"]
[]
[]
[]
[null,null,null,null,"E-mail professionnel du demandeur *"]
[]
[]
[null,null,null,null,"Indiquez votre identifiant CADE transmis par e-mail lors de la validation de votre inscription (PNOMxxx) *"]
[]
[null,null,null,null,"* champs obligatoires"]
[]
[]
[]
[]
[]
[]
[]
[null,null,null,"COMMENTAIRES DU DEMANDEUR\nSuite à l'avis EXPERT"]
[]
[]
[]
[]
[]
[null,null,null,null,"Date"]
[]
[]
[null,null,null,null,"Commentaires du demandeur"]
[]
[]
[]
[]
[]
[]
[]
[]
[]
[]
[null,null,null,"COMMENTAIRES DU DEMANDEUR\nSuite à l'avis CADE"]
[]
[]
[]
[]
[]
[null,null,null,null,"Date"]
[]
[]
[null,null,null,null,"Commentaires du demandeur"]
[]
[]
[]
[]
[]
[]
[]
[]
[]
[]
[]
[]
[]
[]
[]
[]
[]
[null,null,null,"Formulaire d'accès aux données Elfe - Demande complémentaire à une précédente"]

{"sheet":"SECRETARIAT CADE - DEMANDE_3","index":9,"n_rows":31,"n_cols":18,"rows_kept":31,"cut":false,"hidden":true,"merged":[[21,4,22,4],[1,3,5,5],[1,7,4,10],[1,12,4,15],[1,17,4,20],[8,4,9,4],[15,3,19,5]]}
[{"$f":"'DEMANDE DE DONNEES'!A1","v":""}]
[null,null,null,"SECRÉTARIAT DU CADE\nDemande",null,null,null,"Partie réservée \nDEMANDEUR",null,null,null,null,"Partie réservée \nEXPERT",null,null,null,null,"Partie réservée \nCADE"]
[]
[]
[]
[]
[]
[]
[]
[]
[]
[]
[]
[]
[]
[null,null,null,"TRANSMISSION À L'EXPERT"]
[]
[]
[]
[]
[]
[]
[]
[]
[null,null,null,null,"Sélectionner un EXPERT"]
[]
[]
[null,null,null,null,"Date"]
[]
[]
[null,null,null,null,"Informations à transmettre"]

{"sheet":"AVIS EXPERT_3","index":10,"n_rows":72,"n_cols":18,"rows_kept":72,"cut":false,"hidden":true,"merged":[[1,17,4,20],[8,4,9,4],[10,4,11,4],[79,3,79,5],[80,3,81,5],[1,3,5,5],[1,7,4,10],[1,12,4,15]]}
[{"$f":"'DEMANDE DE DONNEES_3'!A1","v":""}]
[null,null,null,"AVIS EXPERT",null,null,null,"Partie réservée \nDEMANDEUR",null,null,null,null,"Partie réservée \nEXPERT",null,null,null,null,"Partie réservée \nCADE"]
[]
[]
[]
[]
[]
[]
[null,null,null,null,{"$f":"IF('DEMANDE DE DONNEES'!E79<>\"\",'DEMANDE DE DONNEES'!E79,\"\")","v":""}]
[]
[null,null,null,null,{"$f":"IF('SECRETARIAT CADE - DEMANDE'!E12<>\"\",CONCATENATE(\"DEMANDE : \",'SECRETARIAT CADE - DEMANDE'!E12),\"\")","v":""}]
[]
[null,null,null,null,"Expert"]
[null,null,null,null,{"$f":"IF('SECRETARIAT CADE - DEMANDE_3'!E26<>\"\",'SECRETARIAT CADE - DEMANDE_3'!E26,\"\")","v":""}]
[]
[null,null,null,null,"Date de l'avis"]
[]
[]
[]
[null,null,null,null,"Les objectifs de la recherche sont en accord avec les objectifs généraux de la cohorte : oui/non ?"]
[]
[null,null,null,null,"Si non, commentez :"]
[]
[]
[]
[null,null,null,null,"Le résumé grand public vous parait adéquat : oui/non ?"]
[]
[null,null,null,null,"Si non, commentez :"]
[]
[]
[]
[null,null,null,null,"Les objectifs et méthodes sont-ils suffisamment précis pour permettre l’expertise : oui/non ?"]
[]
[null,null,null,null,"Si non, commentez :"]
[]
[]
[]
[null,null,null,null,"Les variables sélectionnées sont bien en rapport avec les objectifs de projet : oui/non ?"]
[]
[null,null,null,null,"Si non, commentez :"]
[]
[]
[]
[null,null,null,null,"La demande vous parait-elle soulever des enjeux éthiques : oui/non ?"]
[]
[null,null,null,null,"Si oui, commentez :"]
[]
[]
[]
[null,null,null,null,"La demande contient-elle des variables sensibles (opinion religieuse, politique, orientation sexuelle…) : oui/non ?"]
[]
[null,null,null,null,"Si oui, commentez :"]
[]
[]
[]
[null,null,null,null,"La demande contient-elle des combinaisons de variables augmentant le risque de ré-identification : oui/non ?"]
[]
[null,null,null,null,"Si oui, commentez :"]
[]
[]
[]
[null,null,null,null,"Remarques éventuelles sur la pertinence des variables sélectionnées par rapport à l’objectif du projet : "]
[]
[]
[null,null,null,null,"Suggestion de variables à ajouter à la sélection : "]
[]
[]
[null,null,null,null,"Autres remarques éventuelles :"]
[]
[]
[]
[null,null,null,null,"Avis de l'expert"]

{"sheet":"AVIS CADE_3","index":11,"n_rows":19,"n_cols":18,"rows_kept":19,"cut":false,"hidden":true,"merged":[[1,17,4,20],[8,4,9,4],[10,4,11,4],[26,3,26,5],[27,3,28,5],[1,3,5,5],[1,7,4,10],[1,12,4,15]]}
[{"$f":"'DEMANDE DE DONNEES_3'!A1","v":""}]
[null,null,null,"DECISION CADE",null,null,null,"Partie réservée \nDEMANDEUR",null,null,null,null,"Partie réservée \nEXPERT",null,null,null,null,"Partie réservée \nCADE"]
[]
[]
[]
[]
[null,null,null,null,{"$f":"'SECRETARIAT CADE - DEMANDE'!E12","v":0}]
[]
[null,null,null,null,{"$f":"IF('DEMANDE DE DONNEES'!E79<>\"\",'DEMANDE DE DONNEES'!E79,\"\")","v":""}]
[]
[null,null,null,null,{"$f":"IF('SECRETARIAT CADE - DEMANDE'!E12<>\"\",CONCATENATE(\"DEMANDE : \",'SECRETARIAT CADE - DEMANDE'!E12),\"\")","v":""}]
[]
[null,null,null,null,"Date du CADE"]
[]
[]
[null,null,null,null,"Avis du CADE"]
[]
[]
[null,null,null,null,"Remarques"]

{"sheet":"DEMANDE DE DONNEES_2","index":12,"n_rows":135,"n_cols":9,"rows_kept":135,"cut":false,"hidden":true,"merged":[[1,3,5,5],[1,8,4,11],[87,3,91,5],[107,3,111,5],[134,3,138,5]]}
[{"$f":"TRIM(LEFT(SUBSTITUTE(E19,\"-\",\" \")&REPT(\" \",4))&MID(SUBSTITUTE(E19,\"-\",\" \")&REPT(\" \",4),FIND(\"µ\",SUBSTITUTE(SUBSTITUTE(E19,\"-\",\" \")&REPT(\" \",4),\" \",\"µ\",1))+1,1)&MID(SUBSTITUTE(E19,\"-\",\" \")&REPT(\" \",4),FIND(\"µ\",SUBSTITUTE(SUBSTITUTE(E19,\"-\",\" \")&REPT(\" \",4),\" \",\"µ\",2))+1,1)&MID(SUBSTITUTE(E19,\"-\",\" \")&REPT(\" \",4),FIND(\"µ\",SUBSTITUTE(SUBSTITUTE(E19,\"-\",\" \")&REPT(\" \",4),\" \",\"µ\",3))+1,1))","v":""}]
[null,null,null,"Formulaire d'accès aux données Elfe",null,null,null,null,"Partie réservée \nDEMANDEUR"]
[]
[]
[]
[]
[]
[]
[null,null,null,null,"Titre (explicite)"]
[]
[]
[null,null,null,null,"Date début"]
[]
[]
[null,null,null,null,"Date fin"]
[]
[]
[null,null,null,null,"Identité du demandeur (Prénom NOM)"]
[]
[]
[null,null,null,null,"Statut du demandeur (à choisir parmi la liste)"]
[]
[]
[null,null,null,null,"Identité de l'encadrant du projet (Prénom NOM) et signataire de la future lettre d'engagement *"]
[]
[null,null,null,null,"* champs obligatoires"]
[null,null,null,null,"Nom, prénom des autres personnes qui auront accès aux données"]
[]
[]
[null,null,null,null,"Résumé public (à destination des participants, mis en ligne sur le site Elfe, 200 mots max)"]
[]
[null,null,null,null,{"$f":"CONCATENATE(\"Nombre de mots approximatif : \", SUM(IF(LEN(TRIM(E31))=0,0,LEN(TRIM(E31))-LEN(SUBSTITUTE(E31,\" \",\"\"))+1)))","v":"Nombre de mots approximatif : 0"}]
[null,null,null,null,"Contexte"]
[]
[]
[null,null,null,null,"Objectifs"]
[]
[]
[null,null,null,null,"Méthode(s) envisagée(s)"]
[]
[]
[null,null,null,null,"Listez les catégories de variables demandées et justifier leur pertinence par rapport à votre objectif *"]
[]
[null,null,null,null,"* pour  toutes variables demandées qui ne figureraient pas au catalogue, merci de remplir l'onglet \"VARIABLES_SUPPLEMENTAIRES\" du catalogue"]
[null,null,null,null,"Thème 1 *"]
[]
[null,null,null,null,"* champs obligatoires"]
[null,null,null,null,"Thème 2 *"]
[]
[null,null,null,null,"* champs obligatoires"]
[]
[null,null,null,null,"Thème 3"]
[]
[]
[null,null,null,null,"Cette demande s’inscrit elle dans un projet qui a reçu un financement ?"]
[]
[]
[null,null,null,null,"Montant du droit d’accès aux données Elfe"]
[]
[]
[null,null,null,null,"Envisagez-vous une création de variable susceptible d’enrichir la base de données Elfe"]
[]
[]
[null,null,null,null,"Votre demande nécessite-t-elle des variables directement ou indirectement nominatives (elles sont identifiées par une * dans le questionnaire, leur délivrance demandant une autorisation de la CNIL)"]
[]
[]
[null,null,null,null,"Si oui, lesquelles "]
[]
[]
[]
[null,null,null,null,"Format souhaité pour la livraison des données * (à choisir parmi la liste)"]
[]
[]
[]
[null,null,null,null,"E-mail professionnel du demandeur *"]
[]
[]
[null,null,null,null,"Indiquez votre identifiant CADE transmis par e-mail lors de la validation de votre inscription (PNOMxxx) *"]
[]
[null,null,null,null,"* champs obligatoires"]
[]
[]
[]
[]
[]
[]
[]
[null,null,null,"COMMENTAIRES DU DEMANDEUR\nSuite à l'avis EXPERT"]
[]
[]
[]
[]
[]
[null,null,null,null,"Date"]
[]
[]
[null,null,null,null,"Commentaires du demandeur"]
[]
[]
[]
[]
[]
[]
[]
[]
[]
[]
[null,null,null,"COMMENTAIRES DU DEMANDEUR\nSuite à l'avis CADE"]
[]
[]
[]
[]
[]
[null,null,null,null,"Date"]
[]
[]
[null,null,null,null,"Commentaires du demandeur"]
[]
[]
[]
[]
[]
[]
[]
[]
[]
[]
[]
[]
[]
[]
[]
[]
[]
[null,null,null,"Formulaire d'accès aux données Elfe - Demande complémentaire à une précédente"]

{"sheet":"SECRETARIAT CADE - DEMANDE_2","index":13,"n_rows":31,"n_cols":18,"rows_kept":31,"cut":false,"hidden":true,"merged":[[21,4,22,4],[1,3,5,5],[1,7,4,10],[1,12,4,15],[1,17,4,20],[8,4,9,4],[15,3,19,5]]}
[{"$f":"'DEMANDE DE DONNEES'!A1","v":""}]
[null,null,null,"SECRÉTARIAT DU CADE\nDemande",null,null,null,"Partie réservée \nDEMANDEUR",null,null,null,null,"Partie réservée \nEXPERT",null,null,null,null,"Partie réservée \nCADE"]
[]
[]
[]
[]
[]
[]
[]
[]
[]
[]
[]
[]
[]
[null,null,null,"TRANSMISSION À L'EXPERT"]
[]
[]
[]
[]
[]
[]
[]
[]
[null,null,null,null,"Sélectionner un EXPERT"]
[]
[]
[null,null,null,null,"Date"]
[]
[]
[null,null,null,null,"Informations à transmettre"]

{"sheet":"AVIS EXPERT_2","index":14,"n_rows":72,"n_cols":18,"rows_kept":72,"cut":false,"hidden":true,"merged":[[1,17,4,20],[8,4,9,4],[10,4,11,4],[79,3,79,5],[80,3,81,5],[1,3,5,5],[1,7,4,10],[1,12,4,15]]}
[{"$f":"'DEMANDE DE DONNEES_2'!A1","v":""}]
[null,null,null,"AVIS EXPERT",null,null,null,"Partie réservée \nDEMANDEUR",null,null,null,null,"Partie réservée \nEXPERT",null,null,null,null,"Partie réservée \nCADE"]
[]
[]
[]
[]
[]
[]
[null,null,null,null,{"$f":"IF('DEMANDE DE DONNEES'!E79<>\"\",'DEMANDE DE DONNEES'!E79,\"\")","v":""}]
[]
[null,null,null,null,{"$f":"IF('SECRETARIAT CADE - DEMANDE'!E12<>\"\",CONCATENATE(\"DEMANDE : \",'SECRETARIAT CADE - DEMANDE'!E12),\"\")","v":""}]
[]
[null,null,null,null,"Expert"]
[null,null,null,null,{"$f":"IF('SECRETARIAT CADE - DEMANDE_2'!E26<>\"\",'SECRETARIAT CADE - DEMANDE_2'!E26,\"\")","v":""}]
[]
[null,null,null,null,"Date de l'avis"]
[]
[]
[]
[null,null,null,null,"Les objectifs de la recherche sont en accord avec les objectifs généraux de la cohorte : oui/non ?"]
[]
[null,null,null,null,"Si non, commentez :"]
[]
[]
[]
[null,null,null,null,"Le résumé grand public vous parait adéquat : oui/non ?"]
[]
[null,null,null,null,"Si non, commentez :"]
[]
[]
[]
[null,null,null,null,"Les objectifs et méthodes sont-ils suffisamment précis pour permettre l’expertise : oui/non ?"]
[]
[null,null,null,null,"Si non, commentez :"]
[]
[]
[]
[null,null,null,null,"Les variables sélectionnées sont bien en rapport avec les objectifs de projet : oui/non ?"]
[]
[null,null,null,null,"Si non, commentez :"]
[]
[]
[]
[null,null,null,null,"La demande vous parait-elle soulever des enjeux éthiques : oui/non ?"]
[]
[null,null,null,null,"Si oui, commentez :"]
[]
[]
[]
[null,null,null,null,"La demande contient-elle des variables sensibles (opinion religieuse, politique, orientation sexuelle…) : oui/non ?"]
[]
[null,null,null,null,"Si oui, commentez :"]
[]
[]
[]
[null,null,null,null,"La demande contient-elle des combinaisons de variables augmentant le risque de ré-identification : oui/non ?"]
[]
[null,null,null,null,"Si oui, commentez :"]
[]
[]
[]
[null,null,null,null,"Remarques éventuelles sur la pertinence des variables sélectionnées par rapport à l’objectif du projet : "]
[]
[]
[null,null,null,null,"Suggestion de variables à ajouter à la sélection : "]
[]
[]
[null,null,null,null,"Autres remarques éventuelles :"]
[]
[]
[]
[null,null,null,null,"Avis de l'expert"]

{"sheet":"AVIS CADE_2","index":15,"n_rows":19,"n_cols":18,"rows_kept":19,"cut":false,"hidden":true,"merged":[[1,17,4,20],[8,4,9,4],[10,4,11,4],[26,3,26,5],[27,3,28,5],[1,3,5,5],[1,7,4,10],[1,12,4,15]]}
[{"$f":"'DEMANDE DE DONNEES_2'!A1","v":""}]
[null,null,null,"DECISION CADE",null,null,null,"Partie réservée \nDEMANDEUR",null,null,null,null,"Partie réservée \nEXPERT",null,null,null,null,"Partie réservée \nCADE"]
[]
[]
[]
[]
[null,null,null,null,{"$f":"'SECRETARIAT CADE - DEMANDE'!E12","v":0}]
[]
[null,null,null,null,{"$f":"IF('DEMANDE DE DONNEES'!E79<>\"\",'DEMANDE DE DONNEES'!E79,\"\")","v":""}]
[]
[null,null,null,null,{"$f":"IF('SECRETARIAT CADE - DEMANDE'!E12<>\"\",CONCATENATE(\"DEMANDE : \",'SECRETARIAT CADE - DEMANDE'!E12),\"\")","v":""}]
[]
[null,null,null,null,"Date du CADE"]
[]
[]
[null,null,null,null,"Avis du CADE"]
[]
[]
[null,null,null,null,"Remarques"]

{"sheet":"SECRETARIAT CADE - DEMANDE","index":16,"n_rows":31,"n_cols":18,"rows_kept":31,"cut":false,"hidden":true,"merged":[[21,4,22,4],[1,17,4,20],[8,4,9,4],[15,3,19,5],[1,3,5,5],[1,7,4,10],[1,12,4,15]]}
[{"$f":"'DEMANDE DE DONNEES'!A1","v":""}]
[null,null,null,"SECRÉTARIAT DU CADE\nDemande",null,null,null,"Partie réservée \nDEMANDEUR",null,null,null,null,"Partie réservée \nEXPERT",null,null,null,null,"Partie réservée \nCADE"]
[]
[]
[]
[]
[]
[]
[]
[]
[]
[]
[]
[]
[]
[null,null,null,"TRANSMISSION À L'EXPERT"]
[]
[]
[]
[]
[]
[]
[]
[]
[null,null,null,null,"Sélectionner un EXPERT"]
[]
[]
[null,null,null,null,"Date"]
[]
[]
[null,null,null,null,"Informations à transmettre"]

{"sheet":"AVIS EXPERT","index":17,"n_rows":72,"n_cols":18,"rows_kept":72,"cut":false,"hidden":true,"merged":[[80,3,81,5],[1,7,4,10],[1,12,4,15],[1,17,4,20],[1,3,5,5],[79,3,79,5],[8,4,9,4],[10,4,11,4]]}
[{"$f":"'DEMANDE DE DONNEES'!A1","v":""}]
[null,null,null,"AVIS EXPERT",null,null,null,"Partie réservée \nDEMANDEUR",null,null,null,null,"Partie réservée \nEXPERT",null,null,null,null,"Partie réservée \nCADE"]
[]
[]
[]
[]
[]
[]
[null,null,null,null,{"$f":"IF('DEMANDE DE DONNEES'!E79<>\"\",'DEMANDE DE DONNEES'!E79,\"\")","v":""}]
[]
[null,null,null,null,{"$f":"IF('SECRETARIAT CADE - DEMANDE'!E12<>\"\",CONCATENATE(\"DEMANDE : \",'SECRETARIAT CADE - DEMANDE'!E12),\"\")","v":""}]
[]
[null,null,null,null,"Expert"]
[null,null,null,null,{"$f":"IF('SECRETARIAT CADE - DEMANDE'!E26<>\"\",'SECRETARIAT CADE - DEMANDE'!E26,\"\")","v":""}]
[]
[null,null,null,null,"Date de l'avis"]
[]
[]
[]
[null,null,null,null,"Les objectifs de la recherche sont en accord avec les objectifs généraux de la cohorte : oui/non ?"]
[]
[null,null,null,null,"Si non, commentez :"]
[]
[]
[]
[null,null,null,null,"Le résumé grand public vous parait adéquat : oui/non ?"]
[]
[null,null,null,null,"Si non, commentez :"]
[]
[]
[]
[null,null,null,null,"Les objectifs et méthodes sont-ils suffisamment précis pour permettre l’expertise : oui/non ?"]
[]
[null,null,null,null,"Si non, commentez :"]
[]
[]
[]
[null,null,null,null,"Les variables sélectionnées sont bien en rapport avec les objectifs de projet : oui/non ?"]
[]
[null,null,null,null,"Si non, commentez :"]
[]
[]
[]
[null,null,null,null,"La demande vous parait-elle soulever des enjeux éthiques : oui/non ?"]
[]
[null,null,null,null,"Si oui, commentez :"]
[]
[]
[]
[null,null,null,null,"La demande contient-elle des variables sensibles (opinion religieuse, politique, orientation sexuelle…) : oui/non ?"]
[]
[null,null,null,null,"Si oui, commentez :"]
[]
[]
[]
[null,null,null,null,"La demande contient-elle des combinaisons de variables augmentant le risque de ré-identification : oui/non ?"]
[]
[null,null,null,null,"Si oui, commentez :"]
[]
[]
[]
[null,null,null,null,"Remarques éventuelles sur la pertinence des variables sélectionnées par rapport à l’objectif du projet : "]
[]
[]
[null,null,null,null,"Suggestion de variables à ajouter à la sélection : "]
[]
[]
[null,null,null,null,"Autres remarques éventuelles :"]
[]
[]
[]
[null,null,null,null,"Avis de l'expert"]

{"sheet":"AVIS CADE","index":18,"n_rows":19,"n_cols":18,"rows_kept":19,"cut":false,"hidden":true,"merged":[[27,3,28,5],[8,4,9,4],[1,7,4,10],[1,12,4,15],[1,17,4,20],[1,3,5,5],[26,3,26,5],[10,4,11,4]]}
[{"$f":"'DEMANDE DE DONNEES'!A1","v":""}]
[null,null,null,"DECISION CADE",null,null,null,"Partie réservée \nDEMANDEUR",null,null,null,null,"Partie réservée \nEXPERT",null,null,null,null,"Partie réservée \nCADE"]
[]
[]
[]
[]
[null,null,null,null,{"$f":"'SECRETARIAT CADE - DEMANDE'!E12","v":0}]
[]
[null,null,null,null,{"$f":"IF('DEMANDE DE DONNEES'!E79<>\"\",'DEMANDE DE DONNEES'!E79,\"\")","v":""}]
[]
[null,null,null,null,{"$f":"IF('SECRETARIAT CADE - DEMANDE'!E12<>\"\",CONCATENATE(\"DEMANDE : \",'SECRETARIAT CADE - DEMANDE'!E12),\"\")","v":""}]
[]
[null,null,null,null,"Date du CADE"]
[]
[]
[null,null,null,null,"Avis du CADE"]
[]
[]
[null,null,null,null,"Remarques"]

{"sheet":"DEMANDE DE DONNEES","index":19,"n_rows":135,"n_cols":9,"rows_kept":135,"cut":false,"hidden":false,"merged":[[1,3,5,5],[1,8,4,11],[134,3,138,5],[87,3,91,5],[107,3,111,5]]}
[{"$f":"TRIM(LEFT(SUBSTITUTE(E19,\"-\",\" \")&REPT(\" \",4))&MID(SUBSTITUTE(E19,\"-\",\" \")&REPT(\" \",4),FIND(\"µ\",SUBSTITUTE(SUBSTITUTE(E19,\"-\",\" \")&REPT(\" \",4),\" \",\"µ\",1))+1,1)&MID(SUBSTITUTE(E19,\"-\",\" \")&REPT(\" \",4),FIND(\"µ\",SUBSTITUTE(SUBSTITUTE(E19,\"-\",\" \")&REPT(\" \",4),\" \",\"µ\",2))+1,1)&MID(SUBSTITUTE(E19,\"-\",\" \")&REPT(\" \",4),FIND(\"µ\",SUBSTITUTE(SUBSTITUTE(E19,\"-\",\" \")&REPT(\" \",4),\" \",\"µ\",3))+1,1))","v":""}]
[null,null,null,"Formulaire d'accès aux données Elfe",null,null,null,null,"Partie réservée \nDEMANDEUR"]
[]
[]
[]
[]
[]
[]
[null,null,null,null,"Titre (explicite) *"]
[]
[null,null,null,null,"* champs obligatoires"]
[null,null,null,null,"Date début"]
[]
[]
[null,null,null,null,"Date fin"]
[]
[]
[null,null,null,null,"Identité du demandeur (Prénom NOM) *"]
[]
[]
[null,null,null,null,"Statut du demandeur (à choisir parmi la liste)"]
[]
[]
[null,null,null,null,"Identité de l'encadrant du projet (Prénom NOM) et signataire de la future lettre d'engagement *"]
[]
[null,null,null,null,"* champs obligatoires"]
[null,null,null,null,"Nom, prénom des autres personnes qui auront accès aux données"]
[]
[]
[null,null,null,null,"Résumé public (à destination des participants, mis en ligne sur le site Elfe, 200 mots max) *"]
[]
[null,null,null,null,{"$f":"CONCATENATE(\"Nombre de mots approximatif : \", SUM(IF(LEN(TRIM(E31))=0,0,LEN(TRIM(E31))-LEN(SUBSTITUTE(E31,\" \",\"\"))+1)))","v":"Nombre de mots approximatif : 0"}]
[null,null,null,null,"Contexte *"]
[]
[]
[null,null,null,null,"Objectifs"]
[]
[]
[null,null,null,null,"Méthode(s) envisagée(s)"]
[]
[]
[null,null,null,null,"Listez les catégories de variables demandées et justifier leur pertinence par rapport à votre objectif *"]
[]
[null,null,null,null,"* pour  toutes variables demandées qui ne figureraient pas au catalogue, merci de remplir l'onglet \"VARIABLES_SUPPLEMENTAIRES\" du catalogue"]
[null,null,null,null,"Thème 1 *"]
[]
[null,null,null,null,"* champs obligatoires"]
[null,null,null,null,"Thème 2 *"]
[]
[null,null,null,null,"* champs obligatoires"]
[]
[null,null,null,null,"Thème 3"]
[]
[]
[null,null,null,null,"Cette demande s’inscrit elle dans un projet qui a reçu un financement ?"]
[]
[]
[null,null,null,null,"Montant du droit d’accès aux données Elfe"]
[]
[]
[null,null,null,null,"Envisagez-vous une création de variable susceptible d’enrichir la base de données Elfe"]
[]
[]
[null,null,null,null,"Votre demande nécessite-t-elle des variables directement ou indirectement nominatives (elles sont identifiées par une * dans le questionnaire, leur délivrance demandant une autorisation de la CNIL)"]
[]
[]
[null,null,null,null,"Si oui, lesquelles "]
[]
[]
[]
[null,null,null,null,"Format souhaité pour la livraison des données * (à choisir parmi la liste)"]
[]
[]
[]
[null,null,null,null,"E-mail professionnel du demandeur *"]
[]
[]
[null,null,null,null,"Indiquez votre identifiant CADE transmis par e-mail lors de la validation de votre inscription (PNOMxxx) *"]
[]
[null,null,null,null,"* champs obligatoires"]
[]
[]
[]
[]
[]
[]
[]
[null,null,null,"COMMENTAIRES DU DEMANDEUR\nSuite à l'avis EXPERT"]
[]
[]
[]
[]
[]
[null,null,null,null,"Date"]
[]
[]
[null,null,null,null,"Commentaires du demandeur"]
[]
[]
[]
[]
[]
[]
[]
[]
[]
[]
[null,null,null,"COMMENTAIRES DU DEMANDEUR\nSuite à l'avis CADE"]
[]
[]
[]
[]
[]
[null,null,null,null,"Date"]
[]
[]
[null,null,null,null,"Commentaires du demandeur"]
[]
[]
[]
[]
[]
[]
[]
[]
[]
[]
[]
[]
[]
[]
[]
[]
[]
[null,null,null,"Formulaire d'accès aux données Elfe - Demande complémentaire à une précédente"]

{"sheet":"{AIDE}","index":20,"n_rows":32,"n_cols":4,"rows_kept":32,"cut":false,"hidden":false,"merged":[[0,3,5,25],[30,1,30,7],[26,1,26,7],[11,1,11,7],[8,1,8,7],[13,1,13,7],[17,1,17,7],[10,1,10,7]]}
[null,null,null,"Formulaire d'accès aux données Elfe\nAIDE"]
[]
[]
[]
[]
[]
[]
[]
[null,"SOMMAIRE"]
[]
[null,"A l'ouverture"]
[null,"Déjà inscrit.e ?"]
[]
[null,"Aide"]
[]
[]
[]
[null,"A l'ouverture"]
[]
[null,"Afin de pouvoir remplir le fichier, activer au préalable la modification."]
[]
[]
[null,"Afin que le formulaire puisse correctement fonctionner, il est nécessaire d'activer le contenu et d'autoriser les macros."]
[]
[]
[]
[null,"Déjà inscrit.e ?"]
[null,"Pour tout utilisat.eur.rice déjà inscrit.e, merci de remplir le formulaire présent sous l'onglet \"DEMANDE DE DONNÉES\""]
[]
[]
[null,"Aide"]
[null,"Pour toute demande d'aide, veuillez contacter le secretariat du CADE à l'adresse suivante : secretariat-cad-elfe@ined.fr."]

{"sheet":"RESERVE EXPERTISE","index":21,"n_rows":2,"n_cols":4,"rows_kept":2,"cut":false,"hidden":false,"merged":[[1,3,5,5]]}
[]
[null,null,null,"Onglet Réservé au Secrétariat du CADE Elfe"]

{"sheet":"liste_formulaire","index":22,"n_rows":28,"n_cols":9,"rows_kept":28,"cut":false,"hidden":true,"merged":[]}
["Liste_ON","Liste_EXPERT","Liste_CADE","liste_THEME","Sous-thème","Format_DATA","Liste_NOM_EXPERT","Liste_STATUT","List_ON"]
["Oui","avis favorable","avis favorable","Grossesse",null,"SAS (.sas7bdat)","ARNETON Melissa","Directeu.r.ice de recherche","oui"]
["Non","avis favorable après modifications","avis defavorable","Santé enfant périnatale",null,"STATA (.dta)","BARIL Elodie","Professeur.e Universitaire / Maître.sse de conférence","non"]
[null,"avis défavorable (demande de corrections)",null,"Développement psychomoteur",null,"R ou autres logiciels (.csv)","BERTHOMIER Nathalie","Chargé.e / Ingénieur.e de recherche"]
[null,null,null,"Santé mentale, qualité de vie parents",null,null,"CHARLES Marie-Aline","Etudiant.e / Masterant.e / Doctorant.e"]
[null,null,null,"Santé mentale, qualité de vie enfant",null,null,"CIMBARO-CANELLA Raul","Autre"]
[null,null,null,"Santé physique enfant",null,null,"DITER Kevin"]
[null,null,null,"Santé physique parents",null,null,"DUFOURG Marie-Noelle"]
[null,null,null,"Anthropométrie",null,null,"GERMA Alice"]
[null,null,null,"Recours aux soins",null,null,"GLANGEAUD Nine"]
[null,null,null,"Organes génitaux, puberté, fertilité, vie amoureuse",null,null,"LANOE Jean-Louis"]
[null,null,null,"Vision, Audition, Handicap",null,null,"PLANCOULAINE Sabine"]
[null,null,null,"Sommeil",null,null,"SAMUEL Olivia"]
[null,null,null,"Alimentation",null,null,"SIMEON Thierry"]
[null,null,null,"Rapport au corps, hygiène, santé dentaire",null,null,"THEVENIN Marc"]
[null,null,null,"Activités quotidiennes, socialisation de l'enfant",null,null,"THIERRY Xavier"]
[null,null,null,"Couple, famille",null,null,"VAN DER WAERDEN Judith"]
[null,null,null,"Mode de vie, voisinage ",null,null,"ZEMAN Florence"]
[null,null,null,"Mode de garde, scolarité"]
[null,null,null,"Parentalité"]
[null,null,null,"Valeurs "]
[null,null,null,"Conditions de vie, ressources"]
[null,null,null,"Emploi"]
[null,null,null,"Etudes"]
[null,null,null,"Logement"]
[null,null,null,"Expositions physiques"]
[null,null,null,"Expositions chimiques"]
[null,null,null,"Autre - Précisez ici : "]